{"text_format":"1","workbook":"xlsx","n_sheets":6,"sheets":["Tabelle1","Tabelle2","Zelle_Zuordnen","Datei_Zuordnen","Arbeitsmappe_Zuordnen","Auswerten"],"not_rendered":{"charts":0,"images":3,"macros":0,"external_links":0,"defined_names":7,"comments":3,"pivot_tables":0},"unopened":[],"bounds":{"document_bytes":16777216,"sheet_cells":100000,"rows_first":2000,"rows_last":500,"rows_between":2000,"halvings":0,"cell_chars":16384,"cell_head_chars":4096},"cells_cut":0,"cells_raw":0,"read":"whole","date_system":"1900"}

{"sheet":"Tabelle1","index":0,"n_rows":6,"n_cols":2,"rows_kept":6,"cut":false,"hidden":false,"merged":[]}
[null,{"$f":"Farbe","v":6}]
[null,{"$f":"Farbe","v":33}]
[null,{"$f":"Farbe","v":6}]
[null,{"$f":"Farbe","v":3}]
[null,{"$f":"Farbe","v":49}]
[null,{"$f":"Farbe","v":50}]

{"sheet":"Tabelle2","index":1,"n_rows":9,"n_cols":2,"rows_kept":9,"cut":false,"hidden":false,"merged":[]}
[null,{"$f":"Gelb","v":"Gelb"}]
[null,{"$f":"Gelb","v":"Nicht Gelb"}]
[null,{"$f":"Gelb","v":"Gelb"}]
[null,{"$f":"Gelb","v":"Nicht Gelb"}]
[null,{"$f":"Gelb","v":"Nicht Gelb"}]
[null,{"$f":"Gelb","v":"Nicht Gelb"}]
[]
[]
[{"$f":"3*4","v":12},13]

{"sheet":"Zelle_Zuordnen","index":2,"n_rows":164,"n_cols":40,"rows_kept":164,"cut":false,"hidden":false,"merged":[]}
[null,null,null,"Wichtig: Klick!"]
[null,null,null,63,{"$f":"ZelleZuordnen","v":0}]
[null,null,null,null,{"$f":"VLOOKUP(D2,$A$13:$B$200,2,0)","v":"Die Farbe für Füllung (Hintergrund) einer Zelle."}]
["Nur in Makrovorlagen",null,null,null,null,null,null,null,null,null,null,null,null,null,null,null,null,null,null,null,null,null,null,null,null,null,null,null,null,null,null,null,null,null,null,null,"GET.CELL"]
["Liefert Informationen zu der Formatierung, der Position oder dem Inhalt einer Zelle. Verwenden Sie ZELLE.ZUORDNEN innerhalb eines Makros, dessen Verhalten von dem Status einer bestimmten Zelle abhängt. ",null,null,null,null,null,null,null,null,null,null,null,null,null,null,null,null,null,null,null,null,null,null,null,null,null,null,null,null,null,null,null,null,null,null,null,"www.sulprobil.com/html/get_cell.html"]
[null,null,null,null,null,null,null,null,null,null,null,null,null,null,null,null,null,null,null,null,null,null,null,null,null,null,null,null,null,null,null,null,null,null,null,null,"05.04.09"]
["Syntax",null,null,null,null,null,null,null,null,null,null,null,null,null,null,null,null,null,null,null,null,null,null,null,null,null,null,null,null,null,null,null,null,null,null,null,"You can retrieve interesting information about worksheet cells by using the Excel4 macro function GET.CELL. Define the name HasFormula with the value"]
[null,null,null,null,null,null,null,null,null,null,null,null,null,null,null,null,null,null,null,null,null,null,null,null,null,null,null,null,null,null,null,null,null,null,null,null,"=GET.CELL(48,INDIRECT(\"RC[-1]\",FALSE))"]
["ZELLE.ZUORDNEN(Typ; Bezug)",null,null,null,null,null,null,null,null,null,null,null,null,null,null,null,null,null,null,null,null,null,null,null,null,null,null,null,null,null,null,null,null,null,null,null,"for example. If you now insert =HasFormula next right to a cell, you will be shown whether the cell has a formula (“True”) or not (“False”)."]
[]
["Typ    ist eine Zahl, die angibt, welchen Typ die zu der Zelle gelieferten Informationen haben sollen. In der folgenden Liste sind sowohl die Werte, die Typ annehmen kann, als auch die zugehörigen Ergebnisse zusammengestellt.",null,null,null,null,null,null,null,null,null,null,null,null,null,null,null,null,null,null,null,null,null,null,null,null,null,null,null,null,null,null,null,null,null,null,null,"Another example for GET.CELL you can find here."]
[]
["Typ","Liefert",null,null,null,null,null,null,null,null,null,null,null,null,null,null,null,null,null,null,null,null,null,null,null,null,null,null,null,null,null,null,null,null,null,null,"An overview over some arguments for GET.CELL:"]
[]
[1,"Den absoluten Bezug der oberen linken Zelle von Bezug; der Bezug liegt als Zeichenfolge und in der für den aktuellen Arbeitsbereich definierten Schreibweise vor.",null,null,null,null,null,null,null,null,null,null,null,null,null,null,null,null,null,null,null,null,null,null,null,null,null,null,null,null,null,null,null,null,null,null,null,"Proposed Name","Arg #","What =GET.CELL(Arg #,INDIRECT(\"RC[-1]\",)) will return"]
[2,"Die Zeilennummer der obersten Zelle von Bezug.",null,null,null,null,null,null,null,null,null,null,null,null,null,null,null,null,null,null,null,null,null,null,null,null,null,null,null,null,null,null,null,null,null,null,null,"AbsReference","1","Absolute style reference like [Book1.xls]Sheet1!$A$1"]
[3,"Die Spaltennummer der äußerst linken Zelle von Bezug.",null,null,null,null,null,null,null,null,null,null,null,null,null,null,null,null,null,null,null,null,null,null,null,null,null,null,null,null,null,null,null,null,null,null,null,"ShowValue","5","Cell value"]
[4,"Dasselbe wie TYP(Bezug).",null,null,null,null,null,null,null,null,null,null,null,null,null,null,null,null,null,null,null,null,null,null,null,null,null,null,null,null,null,null,null,null,null,null,null,"ShowFormula","6","Cell formula"]
[5,"Den Inhalt von Bezug.",null,null,null,null,null,null,null,null,null,null,null,null,null,null,null,null,null,null,null,null,null,null,null,null,null,null,null,null,null,null,null,null,null,null,null,"NumFormat","7","Number format of cell"]
[6,"Die in Bezug stehende Formel als Zeichenfolge entweder in der A1- oder in der Z1S1-Schreibweise (hängt von der Einstellung des Arbeitsbereichs ab).",null,null,null,null,null,null,null,null,null,null,null,null,null,null,null,null,null,null,null,null,null,null,null,null,null,null,null,null,null,null,null,null,null,null,null,"IsLocked","14","True if cell is locked"]
[null,null,null,null,null,null,null,null,null,null,null,null,null,null,null,null,null,null,null,null,null,null,null,null,null,null,null,null,null,null,null,null,null,null,null,null,null,"IsHidden","15","True if cell is hidden"]
[7,"Das Zahlenformat der Zelle als Zeichenfolge (zum Beispiel \"T/M/JJ\" oder \"Standard\").",null,null,null,null,null,null,null,null,null,null,null,null,null,null,null,null,null,null,null,null,null,null,null,null,null,null,null,null,null,null,null,null,null,null,null,"ShowWidth","16","Cell width. If array-entered into two cells of a row, second value is true if width is standard"]
[8,"Eine Zahl, die die horizontale Ausrichtung der Zelle angibt:",null,null,null,null,null,null,null,null,null,null,null,null,null,null,null,null,null,null,null,null,null,null,null,null,null,null,null,null,null,null,null,null,null,null,null,"ShowHeight","17","Cell height"]
["1 = Standard ",null,null,null,null,null,null,null,null,null,null,5,null,null,null,null,null,null,null,null,null,null,null,null,null,null,null,null,null,null,null,null,null,null,null,null,null,"WorkbookName","32","Workbook name like [Book1.xls]Sheet1 or Book1.xls if workbook and single sheet have identical names"]
["2 = Linksbündig ",null,null,null,null,null,null,null,null,null,null,7,null,null,null,null,null,null,null,null,null,null,null,null,null,null,null,null,null,null,null,null,null,null,null,null,null,"ShowFormulaWOT","41","Cell formula without translation into language of workspace"]
["3 = Zentriert ",null,null,null,null,null,null,null,null,null,null,17,null,null,null,null,null,null,null,null,null,null,null,null,null,null,null,null,null,null,null,null,null,null,null,null,null,"HasNote","46","True if cell has a text note"]
["4 = Rechtsbündig ",null,null,null,null,null,null,null,null,null,null,18,null,null,null,null,null,null,null,null,null,null,null,null,null,null,null,null,null,null,null,null,null,null,null,null,null,"HasFormula","48","True if cell contains a formula"]
["5 = Ausfüllen",null,null,null,null,null,null,null,null,null,null,19,null,null,null,null,null,null,null,null,null,null,null,null,null,null,null,null,null,null,null,null,null,null,null,null,null,"IsArray","49","True if cell is part of an array formula"]
["6 = Bündig anordnen",null,null,null,null,null,null,null,null,null,null,32,null,null,null,null,null,null,null,null,null,null,null,null,null,null,null,null,null,null,null,null,null,null,null,null,null,"IsStringConst","52","Text alignment char “’” if cell is a string constant, empty string “” if not"]
["7 = Zentriert über Markierung",null,null,null,null,null,null,null,null,null,null,41,null,null,null,null,null,null,null,null,null,null,null,null,null,null,null,null,null,null,null,null,null,null,null,null,null,"AsText","53","Cell displayed as text with numbers formatted and symbols included"]
[9,"Eine Zahl, die die Linienart angibt, die dem linken Rand der Zelle zugeordnet ist:",null,null,null,null,null,null,null,null,null,48,null,null,null,null,null,null,null,null,null,null,null,null,null,null,null,null,null,null,null,null,null,null,null,null,null,"WorksheetName","62","Worksheet name like [Book1.xls]Sheet1"]
["0 = Kein Rahmen",null,null,null,null,null,null,null,null,null,null,62,null,null,null,null,null,null,null,null,null,null,null,null,null,null,null,null,null,null,null,null,null,null,null,null,null,"WorkbookName","66","Workbook name like Book1.xls"]
["1 = Dünne Linie",null,null,null,null,null,null,null,null,null,null,63]
["2 = Mittlere Linie",null,null,null,null,null,null,null,null,null,null,66]
["3 = Unterbrochene Linie"]
["4 = Gepunktete Linie"]
["5 = Dicke Linie"]
["6 = Doppelte Linie"]
["7 = Haarlinie"]
[]
[10,"Eine Zahl, die die Linienart angibt, die dem rechten Rand der Zelle zugeordnet ist; Beschreibungen zu den gelieferten Zahlen finden Sie bei Typ 9."]
[11,"Eine Zahl, die die Linienart angibt, die dem oberen Rand der Zelle zugeordnet ist; Beschreibungen zu den gelieferten Zahlen finden Sie bei Typ 9."]
[12,"Eine Zahl, die die Linienart angibt, die dem unteren Rand der Zelle zugeordnet ist; Beschreibungen zu den gelieferten Zahlen finden Sie bei Typ 9."]
[]
[13,"Eine Zahl von 0 bis 18, die das Muster der markierten Zelle angibt, wie es im Register Muster des Dialogfeldes Zellen formatieren angezeigt wird; dieses Dialogfeld wird eingeblendet, wenn Sie aus dem Menü Format den Befehl Zellen wählen; ist kein Muster ausgewählt, wird 0 zurückgegeben."]
[14,"WAHR, wenn die Zelle gesperrt ist, sonst FALSCH."]
[15,"WAHR, wenn die in der Zelle stehende Formel ausgeblendet ist, sonst FALSCH."]
[16,"Eine einzeilige, aus zwei Elementen bestehende Matrix, die die Breite der aktiven Zelle und einen Wahrheitswert enthält; ist der Wahrheitswert gleich WAHR, ist die Zellenbreite so eingestellt, daß sie zusammen mit Änderungen der Standardbreite geändert wird; ist der Wahrheitswert gleich FALSCH, entspricht die Breite der Zelle einer benutzerdefinierten Breite."]
[]
[17,"Die Zellenhöhe der Zelle in Punkten."]
[18,"Den Namen der Schriftart als Zeichenfolge."]
[19,"Die Größe der Schriftart in Punkten."]
[20,"WAHR, wenn entweder für alle Zeichen oder nur für das erste Zeichen in einer Zelle die Auszeichnung \"Fett\" angegeben ist, sonst FALSCH."]
[21,"WAHR, wenn entweder für alle Zeichen oder nur für das erste Zeichen in einer Zelle die Auszeichnung \"Kursiv\" angegeben ist, sonst FALSCH."]
[22,"WAHR, wenn entweder für alle Zeichen oder nur das erste Zeichen in einer Zelle die Auszeichnung \"Unterstrichen\" angegeben ist, sonst FALSCH."]
[]
[23,"WAHR, wenn entweder für alle Zeichen oder nur für das erste Zeichen in einer Zelle die Auszeichnung \"Durchgestrichen\" angegeben ist, sonst FALSCH."]
[24,"Die Farbe der Schrift als eine Zahl von 1 bis 56; 0, wenn die Farbe der Schrift auf \"Automatisch\" eingestellt ist."]
[25,"WAHR, wenn entweder für alle Zeichen oder nur für das erste Zeichen in einer Zelle die Auszeichnung \"Kontur\" angegeben ist, sonst FALSCH; das Schriftformat \"Kontur\" wird von Microsoft Excel für Windows nicht unterstützt."]
[]
[26,"WAHR, wenn entweder für alle Zeichen oder nur für das erste Zeichen in einer Zelle die Auszeichnung \"Schattiert\" angegeben ist, sonst FALSCH; das Schriftformat \"Schattiert\" wird von Microsoft Excel für Windows nicht unterstützt. "]
[27,"Eine Zahl, die angibt, ob bei der Zelle ein manueller Seitenumbruch auftritt:"]
["0 = Kein Umbruch"]
["1 = Zeile"]
["2 = Spalte"]
["3 = Zeile und Spalte"]
[28,"Zeilenebene (Gliederung)."]
[29,"Spaltenebene (Gliederung)."]
[30,"WAHR, wenn die Zeile, zu der die aktive Zelle gehört, eine Zeilenzusammenfassung ist, sonst FALSCH."]
[]
[31,"WAHR, wenn die Spalte, zu der die aktive ZeIle gehört, eine Spaltenzusammenfassung ist, sonst FALSCH."]
[32,"Name der Arbeitsmappe und des Blattes, zu der die Zelle gehört. Enthält die Arbeitsmappe nur ein einzelnes Blatt und trägt es den selben Namen wie die Arbeitsmappe ohne Präfix, wird nur der Name der Arbeitsmappe in der Form MAPPE1.XLS zurückgegeben."]
[33,"WAHR, wenn die Zelle so formatiert ist, daß Text umbrochen wird, sonst FALSCH."]
[34,"Die Farbe des linken Randes als Zahl von 1 bis 56; 0, wenn die Farbe auf \"Automatisch\" eingestellt ist."]
[]
[35,"Die Farbe des rechten Randes als Zahl von 1 bis 56; 0, wenn die Farbe auf \"Automatisch\" eingestellt ist."]
[36,"Die Farbe des oberen Randes als Zahl von 1 bis 56; 0, wenn die Farbe auf \"Automatisch\" eingestellt ist."]
[37,"Die Farbe des unteren Randes als Zahl von 1 bis 56; 0, wenn die Farbe auf \"Automatisch\" eingestellt ist."]
[38,"Die Farbe der Vordergrundschattierung als Zahl von 1 bis 56; 0, wenn die Farbe auf \"Automatisch\" eingestellt ist."]
[39,"Die Farbe der Hintergrundschattierung als Zahl von 1 bis 56; 0, wenn die Farbe auf \"Automatisch\" eingestellt ist."]
[]
[40,"Die Formatvorlage der Zelle als Zeichenfolge."]
[41,"Die in der aktiven Zelle stehende Formel, ohne diese zu übersetzen (hilfreich für internationale Makrovorlagen)."]
[42,"Den in Punkten gemessenen horizontalen Abstand zwischen der linken Kante des aktiven Fensters und der linken Kante der Zelle; kann eine negative Zahl sein, wenn sich die Zelle außerhalb des Fensters befindet."]
[43,"Den in Punkten gemessenen vertikalen Abstand zwischen der oberen Kante des aktiven Fensters und der oberen Kante der Zelle; kann eine negative Zahl sein, wenn sich die Zelle außerhalb des Fensters befindet."]
[]
[44,"Den in Punkten gemessenen horizontalen Abstand zwischen der linken Kante des aktiven Fensters und der rechten Kante der Zelle; kann eine negative Zahl sein, wenn sich die Zelle außerhalb des Fensters befindet."]
[45,"Den in Punkten gemessenen vertikalen Abstand zwischen der oberen Kante des aktiven Fensters und der unteren Kante der Zelle; kann eine negative Zahl sein, wenn sich die Zelle außerhalb des Fensters befindet."]
[46,"WAHR, wenn die Zelle eine Textnotiz enthält, sonst FALSCH."]
[]
[47,"WAHR, wenn die Zelle eine Tonnotiz enthält, sonst FALSCH."]
[48,"WAHR, wenn die Zelle eine Formel enthält, FALSCH, wenn sie eine Konstante enthält."]
[49,"WAHR, wenn die Zelle zu einer Matrix gehört, sonst FALSCH."]
[50,"Eine Zahl, die die vertikale Ausrichtung für die Zelle angibt:"]
["1 = Oben "]
["2 = Zentriert "]
["3 = Unten "]
["4 = Bündig anordnen"]
[51,"Eine Zahl, die die vertikale Richtung für die Zelle angibt:"]
["0 = Horizontal"]
["1 = Vertikal"]
["2 = Nach oben"]
["3 = Nach unten"]
[52,"Das Präfixzeichen (oder das Zeichen für die Textausrichtung) der Zelle oder eine leere Zeichenfolge (\"\"), wenn die Zelle kein solches Zeichen enthält."]
[]
[53,"Den Inhalt der Zelle als Zeichenfolge in der Form, wie er momentan angezeigt wird, einschließlich aller weiteren Zahlen oder Symbole, die sich aus der Formatierung der Zelle ergeben."]
[54,"Den Namen der Pivot-Tabelle, die die aktive Zelle enthält."]
[55,"Die Position einer Zelle innerhalb der Pivot-Tabelle."]
[null,"0 = Zeilenfeld"]
["1 = Spaltenfeld"]
["2 = Seitenfeld"]
["3 = Datenfeld"]
["4 = Zeilenbeschriftung"]
["5 = Spaltenbeschriftung"]
["6 = Seitenbeschriftung"]
["7 = Datenbeschriftung"]
["8 = Tabellengerüst"]
[]
[56,"Den Namen des Feldes, das den Bezug der aktiven Zelle enthält, wenn sich diese innerhalb einer Pivot-Tabelle befindet."]
[57,"WAHR, wenn entweder alle Zeichen oder nur das erste Zeichen in einer Zelle im Format \"Hochgestellt\" vorliegt, sonst FALSCH."]
[58,"Den Schriftstil für alle Zeichen oder nur das erste Zeichen in einer Zelle, wie er im Register Schriftart des Dialogfeldes Zellen formatieren angezeigt wird: zum Beispiel \"Fett Kursiv\"."]
[59,"Eine Zahl, die den Typ der Unterstreichung angibt:"]
[]
["1 = Keine"]
["2 = Einzelstrich"]
["3 = Doppelstrich"]
["4 = Einfach (Buchhaltung)"]
["5 = Doppelt (Buchhaltung)"]
[60,"WAHR, wenn entweder alle Zeichen oder nur das erste Zeichen in einer Zelle im Format \"Tiefgestellt\" vorliegt, sonst FALSCH."]
[61,"Den Namen des Pivot-Tabellen-Elements der aktiven Zelle als Zeichenfolge."]
[62,"Den Namen der aktuellen Arbeitsmappe und des Blattes in der Form [Mappe1]Blatt1."]
[63,"Die Farbe für Füllung (Hintergrund) einer Zelle."]
[64,"Die Farbe für Muster (Vordergrund) einer Zelle."]
[]
[65,"WAHR, wenn die Option \"Einrücken\" aktiviert wurde (nur Fernost-Version von Microsoft Excel), sonst FALSCH."]
[66,"Den Namen der Arbeitsmappe, die die aktive Zelle enthält, in der Form MAPPE1.XLS."]
[]
["Bezug    ist eine Zelle oder ein Zellbereich, zu der oder dem Sie Informationen abrufen möchten."]
[]
["Ist Bezug ein Zellbereich, wird die Zelle angenommen, die die obere linke Ecke des ersten der von Bezug angegebenen Bereiche bildet."]
[null,"Ist Bezug nicht angegeben, wird die aktive Zelle verwendet."]
[]
["Tip","Verwenden Sie ZELLE.ZUORDNEN(17), um die Höhe einer Zelle zu ermitteln, und ZELLE.ZUORDNEN(44) - ZELLE.ZUORDNEN(42), um deren Breite zu ermitteln."]
[]
["Beispiele"]
[]
["Die folgende Makroformel liefert den Wert WAHR, wenn für die Zelle B4 der Tabelle \"Tabelle1\" die Auszeichnung \"Fett\" angegeben ist:"]
[]
["ZELLE.ZUORDNEN(20; Tabelle1!$B$4)"]
[]
[]
["Die von ZELLE.ZUORDNEN gelieferten Informationen können Sie verwenden, um einen Vorgang zu starten. Die folgende Makroformel führt eine benutzerdefinierte Funktion namens ZellAuszFett aus, wenn die Funktion ZELLE.ZUORDNEN den Wert FALSCH liefert:"]
[]
["WENN(ZELLE.ZUORDNEN(20; Tab1!$B$4);; ZellAuszFett())"]
[]
[]
["Verwandte Funktionen"]
[]
["ABSPOS","Liefert den absoluten Bezug eines Zellbereichs auf einen anderen Bereich"]
["AKTIVE.ZELLE","Liefert den Bezug der aktiven Zelle"]
["FORMEL.ZUORDNEN","Liefert den Inhalt einer Zelle"]
["NAMEN.ZUORDNEN","Liefert die zu einem Namen gehörende Definition"]
["NOTIZ.ZUORDNEN","Liefert Zeichen einer Notiz"]
["RELPOS","Liefert einen relativen Bezug"]

{"sheet":"Datei_Zuordnen","index":3,"n_rows":227,"n_cols":13,"rows_kept":227,"cut":false,"hidden":false,"merged":[]}
[null,null,"Alle",null,"Wichtig: Klick!"]
[null,null,null,null,2,{"$f":"DateiZuordnen","v":"C:\\Users\\Helmut Benutzerkonto\\AppData\\Local\\Microsoft\\Windows\\Temporary Internet Files\\Content.IE5\\2FRM1HSZ"}]
[]
[null,null,null,null,{"$f":"VLOOKUP($E$2,$A$6:$B$201,2,0)","v":"Den Pfad des Verzeichnisses oder Ordners, in dem die Arbeitsmappe Name abgelegt ist, als Zeichenfolge; wurde die Arbeitsmappe Name bisher nicht gespeichert, wird der Fehlerwert #NV geliefert."}]
["DATEI.ZUORDNEN(Typ; [Name])"]
[]
["Typ    ist eine Zahl, mit der Sie angeben, welcher Typ von Informationen geliefert werden soll. In der folgenden Liste sind sowohl die Werte, die Typ annehmen kann, als auch die zugehörigen Informationen aufgeführt."]
[]
["Typ","Liefert"]
[]
[1,"Den Namen der Arbeitsmappe als Zeichenfolge in der Form \"[Mappe1]Tabelle1\", wenn sich mehr als ein Blatt in der Arbeitsmappe befindet. Ansonsten wird nur der Name der Arbeitsmappe geliefert. Dieser Name umfaßt nicht das Laufwerk, das Verzeichnis bzw. den Ordner oder die Nummer des Fensters. Es ist einfacher, mit DATEI.ZUORDNEN(76) und DATEI.ZUORDNEN(88) die Namen des aktuellen Blattes und der aktuellen  Arbeitsmappe zu ermitteln."]
[2,"Den Pfad des Verzeichnisses oder Ordners, in dem die Arbeitsmappe Name abgelegt ist, als Zeichenfolge; wurde die Arbeitsmappe Name bisher nicht gespeichert, wird der Fehlerwert #NV geliefert."]
[]
[3,"Die Zahl, die den Typ des Blattes angibt. Ist Name ein Blatt, wird einer der folgenden Werte geliefert. Ist Name eine Mappe, wird immer 5 zurückgegeben. Ist Name nicht angegeben, dann wird der Typ des Blattes geliefert. Wenn die Mappe nur ein Blatt enthält, das den gleichen Namen hat wie die Mappe, dann wird der Typ des Blattes geliefert."]
["1 = Tabellenblatt"]
["2 = Diagramm"]
["3 = Makrovorlage"]
["4 = Info-Fenster (sofern aktiv)"]
["5 = Reserviert"]
["6 = Modul"]
["7 = Dialog"]
[]
[4,"WAHR, wenn das Blatt seit seiner letzten Speicherung geändert wurde, sonst FALSCH."]
[5,"WAHR, wenn das Blatt schreibgeschützt ist, sonst FALSCH."]
[6,"WAHR, wenn das Blatt mit Kennwortschutz versehen ist, sonst FALSCH."]
[7,"WAHR, wenn Zellen eines Blattes, der Inhalt eines Blattes oder die Datenreihen eines Diagramms geschützt sind, sonst FALSCH."]
[8,"WAHR, wenn Arbeitsmappenfenster geschützt sind, sonst FALSCH."]
[]
["Die nächsten vier Werte von Typ gelten nur für Diagramme."]
[]
["Typ","Liefert"]
[]
[9,"Eine Zahl, die den Typ des Hauptdiagramms angibt:"]
["1 = Flächen "]
["2 = Balken "]
["3 = Säulen "]
["4 = Linien"]
["5 = Kreis "]
["6 = XY (Punkte) "]
["7 = 3D-Flächen"]
["8 = 3D-Säulen"]
["9 = 3D-Linien"]
["10 = 3D-Kreis"]
["11 = Netz"]
["12 = 3D-Balken"]
["13 = 3D-Oberfläche"]
["14 = Ring"]
[10,"Eine Zahl, die den Typ des Überlagerungsdiagramms angibt; entspricht den Zahlen 1, 2, 3, 4, 5, 6, 11 und 14 für Hauptdiagramme; gibt es kein Überlagerungsdiagramm, wird der Fehlerwert #NV zurückgegeben."]
[11,"Die Anzahl der Datenreihen des Hauptdiagramms."]
[]
[12,"Die Anzahl der Datenreihen des Überlagerungsdiagramms."]
[]
["Die nächsten Werte von Typ beziehen sich auf Tabellen- und Makroblätter sowie, sofern für diese sinnvoll, auf Diagramme."]
[]
["Typ","Liefert"]
[]
[9,"Die Nummer der ersten verwendeten Zeile; ist die Tabelle leer, wird 0 zurückgegeben."]
[10,"Die Nummer der letzten verwendeten Zeile; ist die Tabelle leer, wird 0 zurückgegeben."]
[11,"Die Nummer der ersten verwendeten Spalte; ist die Tabelle leer, wird 0 zurückgegeben. "]
[12,"Die Nummer der letzten verwendeten Spalte; ist die Tabelle leer, wird 0 zurückgegeben."]
[13,"Die Anzahl der Fenster."]
[14,"Eine Zahl, die den für Berechnungen verwendeten Modus angibt:"]
["1 = Automatisch "]
["2 = Automatisch, außer bei Mehrfachoperationen "]
["3 = Manuell (Auf Befehl)"]
[]
[15,"WAHR, wenn im Dialogfeld Optionen im Register Berechnen das Kontrollkästchen \"Iteration\" aktiviert ist, sonst FALSCH."]
[16,"Die maximale Anzahl an Iterationsschritten."]
[17,"Die größte Änderung zwischen Iterationsschritten."]
[18,"WAHR, wenn im Dialogfeld Optionen im Register Berechnen das Kontrollkästchen \"Fernbezüge aktualisieren\" aktiviert ist, sonst FALSCH."]
[19,"WAHR, wenn im Dialogfeld Optionen im Register Berechnen das Kontrollkästchen \"Genauigkeit wie angezeigt\" aktiviert ist, sonst FALSCH."]
[]
[20,"WAHR, wenn im Dialogfeld Optionen im Register Berechnen das Kontrollkästchen \"1904-Datumswerte\" aktiviert ist, sonst FALSCH."]
[]
["Die Typ-Werte 21 bis 29 beziehen sich auf die vier Standardschriftarten früherer Microsoft Excel-Versionen. Diese Werte werden nur aus Gründen der Makrokompatibilität bereitgestellt."]
[]
["Die nächsten Werte von Typ beziehen sich auf Tabellen- und Makroblätter sowie, wenn darauf hingewiesen wird, auf Diagramme."]
[]
["Typ","Liefert"]
[]
[30,"Eine einzeilige Matrix mit Zeichenfolgen, die die Konsolidierungsbezüge des aktuellen Tabellenblatts angeben; ist die Liste leer, wird der Fehlerwert #NV zurückgegeben."]
[31,"Eine Zahl von 1 bis 11, die die Funktion angibt, die für die aktuelle Konsolidierung verwendet wird; eine Liste der Funktionen, die diesen Zahlen zugeordnet sind, finden Sie bei der Funktion KONSOLIDIEREN. Die voreingestellte Funktion ist SUMME."]
[32,"Eine aus drei Elementen bestehende einzeilige Matrix, die den Status der Kontrollkästchen des Dialogfeldes Konsolidieren angibt; ist ein Kontrollkästchen aktiviert, ist das zugehörige Element mit WAHR, sonst mit FALSCH belegt; das erste Element entspricht dem Kontrollkästchen \"oberster Zeile\", das zweite dem Kontrollkästchen \"linker Spalte\" und das dritte dem Kontrollkästchen \"Verknüpfungen mit Quelldaten\"."]
[]
[33,"WAHR, wenn im Dialogfeld Optionen im Register Berechnen das Kontrollkästchen \"Vor dem Speichern neu berechnen\" aktiviert ist, sonst FALSCH. "]
[34,"WAHR, wenn für die Arbeitsmappe Schreibschutz empfohlen wird, sonst FALSCH."]
[35,"WAHR, wenn die Arbeitsmappe schreibgeschützt ist, sonst FALSCH."]
[36,"Den Namen des Benutzers, der die Arbeitsmappe mit einem Schreibberechtigungskennwort gespeichert hat, wenn die Arbeitsmappe mit Schreib-/Lesezugriff geöffnet wird. Wurde die Arbeitsmappe mit Schreibschutz geöffnet, oder wurde kein Kennwort angegeben, wird der Name des aktuellen Benutzers zurückgegeben."]
[]
[37,"Eine Zahl, die dem Typ der Arbeitsmappe entspricht, so wie er innerhalb des Dialogfeldes Speichern unter angezeigt wird; eine Liste aller Dateitypen, die Microsoft Excel erkennt, finden Sie bei der Funktion SPEICHERN.UNTER."]
[38,"WAHR, wenn im Dialogfeld Einrichten (Menü Daten, Befehl Gliederung)das Kontrollkästchen \"Hauptzeilen unter Detaildaten\" aktiviert ist, sonst FALSCH."]
[39,"WAHR, wenn im Dialogfeld Einrichten (Menü Daten, Befehl Gliederung) das Kontrollkästchen \"Hauptspalten rechts von Detaildaten\" aktiviert ist, sonst FALSCH."]
[]
[40,"WAHR, wenn im Dialogfeld Speichern-Obtionen das Kontrollkästchen \"Sicherungsdatei erstellen\" aktiviert ist, sonst FALSCH."]
[41,"Eine Zahl von 1 bis 3, die angibt, ob Objekte angezeigt werden:",null,null,null,null,null,null,null,null,null,null,1]
["1 = Alle Objekte werden angezeigt",null,null,null,null,null,null,null,null,null,null,null,2]
["2 = Platzhalter für Bilder und Diagramme",null,null,null,null,null,null,null,null,null,null,null,14]
["3 = Alle Objekte sind ausgeblendet",null,null,null,null,null,null,null,null,null,null,null,36]
[42,"Eine einzeilige Matrix mit allen Objekten des Blattes; gibt es keine Objekte, wird der Fehlerwert #NV zurückgegeben.",null,null,null,null,null,null,null,null,null,null,42]
[43,"WAHR, wenn im Dialogfeld Optionen im Register Berechnen das Kontrollkästchen \"Externe Verknüpfungswerte speichern\" aktiviert ist, sonst FALSCH.",null,null,null,null,null,null,null,null,null,null,50]
[null,null,null,null,null,null,null,null,null,null,null,null,64]
[44,"WAHR, wenn Objekte einer Arbeitsmappe geschützt sind, sonst FALSCH.",null,null,null,null,null,null,null,null,null,null,68]
[45,"Eine Zahl von 0 bis 3, die angibt, wie Fenster synchronisiert werden:"]
["0 = Nicht synchronisiert"]
["1 = Horizontal synchronisiert"]
["2 = Vertikal synchronisiert"]
["3 = Horizontal und vertikal synchronisiert"]
[46,"Eine einzeilige Matrix, deren sieben Elemente die Druckeinstellungen angeben, die mit Hilfe der Makrofunktion ZEILEN.DRUCKEN eingestellt werden können:"]
[null,"-","Initialisierende Zeichenfolge"]
[null,"-","Linker Rand"]
[]
["-","Rechter Rand"]
[null,"-","Oberer Rand"]
[null,"-","Unterer Rand"]
[]
["-","Seitenlänge"]
[]
["-","Ein Wahrheitswert, der angibt, ob die jeweilige Ausgabe formatiert (WAHR) oder unformatiert (FALSCH) gedruckt wird."]
[]
[47,"WAHR, wenn im Dialogfeld Optionen im Register Umsteigen das Kontrollkästchen \"Alternative Formelberechnung\" aktiviert ist, sonst FALSCH."]
[48,"Die Standardeinstellung für die Spaltenbreite."]
[]
["Die nächsten Werte von Typ entsprechen den Druck- und Seiteneinstellungen."]
[]
["Typ","Liefert"]
[]
[49,"Die Seitenzahl der ersten Seite oder 1, wenn keine angegeben ist."]
[50,"Die Anzahl an Seiten, die ausgehend von den aktuellen Einstellungen gedruckt würden (wobei Notizen unberücksichtigt bleiben), oder 1, wenn es sich bei der Datei um ein Diagramm handelt."]
[51,"Die Anzahl an Seiten, die gedruckt würden, wenn Sie nur Notizen ausgeben würden, oder den Fehlerwert #NV, wenn es sich bei der Datei um ein Diagramm handelt."]
[52,"Eine einzeilige Matrix, deren vier Elemente die für die Seitenränder (links, rechts, oben, unten) wirksamen Einstellungen entsprechend der aktuellen Einheiten angeben."]
[]
[53,"Eine Zahl, die die Blattausrichtung angibt:"]
["1 = Hochformat"]
["2 = Querformat"]
[54,"Die Kopfzeile als Zeichenfolge einschließlich formatierender Codes."]
[55,"Die Fußzeile als Zeichenfolge einschließlich formatierender Codes."]
[56,"Eine einzeilige Matrix mit zwei Wahrheitswerten, die der horizontalen und vertikalen Zentrierung entsprechen."]
[57,"WAHR, wenn Zeilen- oder Spaltenköpfe gedruckt werden sollen, sonst FALSCH."]
[58,"WAHR, wenn Gitternetzlinien gedruckt werden sollen, sonst FALSCH."]
[]
[59,"WAHR, wenn das Blatt nur in Schwarz/Weiß gedruckt werden soll, sonst FALSCH."]
[60,"Eine Zahl von 1 bis 3, die angibt, wie die Größe des Diagramms eingestellt wird, wenn es gedruckt wird:"]
["1 = Auf dem Bildschirm skalieren"]
["2 = An Seite anpassen"]
["3 = Ganze Seite verwenden"]
[61,"Eine Zahl, die die Seitenreihenfolge angibt:"]
["1 = Seiten nach unten, dann nach rechts"]
["2 = Seiten nach rechts, dann nach unten"]
["Liefert den Fehlerwert #NV, wenn es sich bei der Datei um ein Diagramm handelt."]
[]
[62,"Die Prozentzahl der Verkleinerung/Vergrößerung oder 100 %, wenn keine Prozentzahl angegeben ist; liefert den Fehlerwert #NV, wenn der aktuelle Drucker diese Option nicht unterstützt oder es sich bei der Datei um ein Diagramm handelt."]
[63,"Eine einzeilige Matrix, deren zwei Elemente angeben, wie viele Seiten zur Verfügung stehen, um die maßstäblich angepaßte Druckausgabe aufzunehmen, wobei das erste Element der Breite (oder #NV, wenn keine Breitenanpassung angegeben ist) und das zweite Element der Höhe (oder #NV, wenn keine Höhenanpassung angegeben ist) entspricht; es wird auch dann #NV zurückgegeben, wenn es sich bei der Datei um ein Diagramm handelt."]
[]
[64,"Eine Matrix mit Zeilennummern, die die Zeilen angeben, die sich unmittelbar unter einem manuellen oder automatischen Seitenumbruch befinden."]
[65,"Eine Matrix mit Spaltennummern, die die Spalten angeben, die sich unmittelbar rechts von einem manuellen oder automatischen Seitenumbruch befinden."]
[]
["Anmerkung","DATEI.ZUORDNEN(62) und DATEI.ZUORDNEN(63) schließen einander aus; liefert die eine Funktion einen Wert, dann liefert die andere den Fehlerwert #NV."]
[]
["Die nächsten Werte von Typ entsprechen unterschiedlichen Arbeitsmappeneinstellungen."]
[]
["Typ","Liefert"]
[]
[66,"In Microsoft Excel für Windows WAHR, wenn im Dialogfeld Optionen im Register Umsteigen das Kontrollkästchen \"Alternative Formeleingabe\" aktiviert ist, sonst FALSCH. "]
[67,"Microsoft Excel, Version 5.0 oder höher, liefert hier immer WAHR."]
[68,"Microsoft Excel, Version 5.0 oder höher, liefert immer den Namen der Mappe."]
[69,"WAHR, wenn im Dialogfeld Optionen im Register Ansicht das Kontrollkästchen \"Seitenwechsel\" aktiviert ist, sonst FALSCH."]
[]
[70,"Die Namen aller Pivot-Tabellen im aktuellen Tabellenblatt als einzeilige Matrix."]
[71,"Eine einzeilige Matrix mit allen Formatvorlagen einer Arbeitsmappe."]
[72,"Eine einzeilige Matrix mit allen Diagrammtypen, die auf dem aktuellen Blatt angezeigt werden."]
[73,"Eine Matrix mit Zahlen, die angeben, wie viele Datenreihen zu jedem Diagramm des aktuellen Blattes gehören."]
[74,"Die Objektkennung des Steuerelementes, das momentan innerhalb eines laufenden benutzerdefinierten Dialogfeldes aktiviert ist (den Fokus hat; bezieht sich auf das zugehörige Dialogblatt)."]
[]
[75,"Die Objektkennung des Objekts, das momentan innerhalb eines laufenden benutzerdefinierten Dialogfeldes die Standardschaltfläche ist (bezieht sich auf das zugehörige Dialogblatt)."]
[76,"Den Namen des aktiven Blattes oder Makroblattes in der Form [Mappe1]Tabelle1."]
[77,"In Microsoft Excel für Windows. Eine ganze Zahl, die die Papiergröße angibt:"]
[null,"1 = Letter 8.5 x 11 in"]
["2 = Letter Small 8.5 x 11 in"]
["5 = Legal 8.5 x 14 in"]
["9 = A4 210 x 297 mm"]
["10 = A4 Small 210 x 297 mm"]
["13 = B5 182 x 257 mm"]
["18 = Note 8.5 x 11 in"]
[]
[78,"Die Druckauflösung als einzeilige Matrix mit zwei Zahlen."]
[79,"WAHR, wenn im Dialogfeld Seite einrichten im Register Tabelle das Kontrollkästchen \"Entwurfsqualität\" aktiviert ist, sonst FALSCH."]
[80,"WAHR, wenn im Dialogfeld Seite einrichten im Register Tabelle das Kontrollkästchen \"Kommentare\" aktiviert ist, sonst FALSCH."]
[81,"Den Druckbereich, der im Dialogfeld Seite einrichten im Register Tabelle festgelegt ist, als Zellbezug."]
[]
[82,"Die Drucktitel aus dem Register Tabelle des Dialogfeldes Seite einrichten als Matrix aus Zellbezügen."]
[83,"WAHR, wenn eine Tabelle für Szenarios geschützt wurde, sonst FALSCH."]
[84,"Den Bezug des ersten Zirkelbezugs des Blattes oder #NV, wenn keine Zirkelbezüge vorhanden sind."]
[85,"Den Status des Filtermodus des Blattes, der von Spezialfiltern erstellt wurde; dies ist der Modus ohne obere Dropdown-Pfeile (Filterpfeile). WAHR, wenn der Befehl Filter und dann Spezialfilter aus dem Menü Daten gewählt wurde, anderenfalls FALSCH."]
[]
[86,"Den Status des Filtermodus des Blattes, der von automatischen Filtern erstellt wurde; dies ist der Modus mit oberen Dropdown-Pfeilen (Filterpfeile). WAHR, wenn der Befehl Filter und dann AutoFilter aus dem Menü Daten gewählt wurde, anderenfalls FALSCH."]
[87,"Die Positionsnummer des Blattes; das erste Blatt hat die Position 1; ausgeblendete Blätter werden mitgezählt."]
[88,"Den Namen der aktiven Arbeitsmappe, in der Form \"Mappe1\"."]
[]
["Name    ist der Name einer geöffneten Arbeitsmappe. Ist Name nicht angegeben, wird der Name der aktiven Arbeitsmappe angenommen."]
[]
["Beispiele"]
[]
["Die folgende Makroformel liefert WAHR, wenn der Inhalt der aktiven Arbeitsmappe geschützt ist:"]
[]
["DATEI.ZUORDNEN(7)"]
[]
[]
["In Microsoft Excel für Windows liefert die folgende Makroformel die Anzahl der Fenster, die für UMSATZ.XLS definiert sind:"]
[]
["DATEI.ZUORDNEN(13; \"UMSATZ.XLS\")"]
[]
[]
["In Microsoft Excel für den Macintosh liefert die folgende Makroformel den Wert 3, wenn das Überlagerungsdiagramm von DIAGRAMM UMSATZ ein Säulendiagramm ist:"]
[]
["DATEI.ZUORDNEN(10; \"DIAGRAMM UMSATZ\")"]
[]
[]
["Wenn Sie wissen möchten, ob die Tabelle \"Tabelle1\" durch ein Kennwort geschützt ist und ob deren Inhalte und Fenster geschützt sind, müssen Sie die folgende Formel in eine aus drei Zellen bestehende einzeilige Matrix eingeben:"]
[]
["DATEI.ZUORDNEN({6; 7; 8}; \"TABELLE1\")"]
[]
[]
["Verwandte Funktionen"]
[]
["ARBEITSBEREICH.ZUORDNEN","Liefert Informationen zu dem Arbeitsbereich"]
["FENSTER.ZUORDNEN","Liefert Informationen zu einem Fenster"]
["ZELLE.ZUORDNEN","Liefert Informationen zu der angegebenen Zelle"]

{"sheet":"Arbeitsmappe_Zuordnen","index":4,"n_rows":78,"n_cols":15,"rows_kept":78,"cut":false,"hidden":false,"merged":[]}
[null,null,"Alle",null,"Wichtig: Klick!"]
[null,null,null,null,38,{"$f":"ArbeitsmappeZuordnen","v":"Zelle_Zuordnen"}]
[]
[null,null,null,null,{"$f":"VLOOKUP(E2,$A$13:$B$200,2,0)","v":"Den Namen des aktiven Blattes."}]
["Syntax"]
[null,null,null,null,null,null,null,null,null,null,null,null,null,null,"Nur die Blätter der Arbeitsmappe"]
["ARBEITSMAPPE.ZUORDNEN(Typ; Name)",null,null,null,null,null,null,null,1,{"$f":"INDEX(ArbeitsmappeZuordnen,ROW(A1))","v":"[Excel4_Makro(1).xlsm]Tabelle1"},null,null,null,null,{"$f":"RIGHT($J7,LEN($J7)-FIND(\"]\",$J7))","v":"Tabelle1"}]
[null,null,null,null,null,null,null,null,1,{"$f":"INDEX(ArbeitsmappeZuordnen,ROW(A2))","v":"[Excel4_Makro(1).xlsm]Tabelle2"},null,null,null,null,{"$f":"RIGHT($J8,LEN($J8)-FIND(\"]\",$J8))","v":"Tabelle2"}]
["Typ    ist eine Zahl, die angibt, welche Informationen Sie zu der jeweiligen Arbeitsmappe abrufen möchten.",null,null,null,null,null,null,null,1,{"$f":"INDEX(ArbeitsmappeZuordnen,ROW(A3))","v":"[Excel4_Makro(1).xlsm]Zelle_Zuordnen"},null,null,null,null,{"$f":"RIGHT($J9,LEN($J9)-FIND(\"]\",$J9))","v":"Zelle_Zuordnen"}]
[]
["Typ","Liefert"]
[]
[1,"Eine einzeilige, aus Zeichenfolgen bestehende Matrix mit den Namen der zu der Arbeitsmappe gehörenden Blätter. "]
["Namen werden als [Arbeitsmappe]Blatt zurückgegeben."]
[2,"Immer den Fehlerwert #NV."]
[3,"Eine einzeilige, aus Zeichenfolgen bestehende Matrix mit den Namen der Blätter der Arbeitsmappe, die momentan markiert sind."]
[4,"Die Anzahl der zu einer Arbeitsmappe gehörenden Blätter."]
[5,"WAHR, wenn die Arbeitsmappe einen Verteiler hat, sonst FALSCH."]
[6,"Eine einzeilige, aus Zeichenfolgen bestehende Matrix mit den Namen aller Empfänger, die im Verteiler der Arbeitsmappe angegeben sind und die Arbeitsmappe nicht empfangen haben."]
[]
[7,"Als Zeichenfolge (Text) die Betreffzeile des aktuellen Verteilers."]
[8,"Als Zeichenfolge (Text) die zu dem Verteiler gehörende Nachricht."]
[9,"1, wenn die Arbeitsmappe von einem Empfänger zum jeweils nächsten verschickt werden soll; 2, wenn die Arbeitsmappe gleichzeitig an alle Empfänger verschickt werden soll."]
[10,"WAHR, wenn im Dialogfeld Verteiler das Kontrollkästchen \"Nach Erledigung zurück zum Absender\" aktiviert ist."]
[11,"WAHR, wenn der aktuelle Empfänger die aktuelle Arbeitsmappe bereits weitergeleitet hat, sonst FALSCH."]
[]
[12,"WAHR, wenn im Dialogfeld Verteiler das Kontrollkästchen \"Status verfolgen\" aktiviert ist, sonst FALSCH."]
[]
[13,"Zustand der Verteilung der Arbeitsmappe:"]
["0 = noch nicht verteilt"]
["1 = Verteilung ist im Gange, oder die Arbeitsmappe wurde an einen Benutzer ","verschickt"]
["2 = Verteilung ist beendet"]
[]
[14,"WAHR, wenn die Struktur der Arbeitsmappe geschützt ist, sonst FALSCH."]
[15,"WAHR, wenn die Fenster der Arbeitsmappe geschützt sind, sonst FALSCH."]
[16,"Als Zeichenfolge den Namen der Arbeitsmappe, wobei dieser Name nicht das Laufwerk, das Verzeichnis bzw. den Ordner oder die Nummer des Fensters umfaßt."]
[17,"WAHR, wenn die Arbeitsmappe schreibgeschützt ist, sonst FALSCH; ARBEITSMAPPE.ZUORDNEN(17) ist gleichbedeutend mit DATEI.ZUORDNEN(34)."]
[18,"WAHR, wenn die Datei mit einem Kennwort schreibgeschützt ist, sonst FALSCH; ARBEITSMAPPE.ZUORDNEN(18) ist gleichbedeutend mit DATEI.ZUORDNEN(35)."]
[]
[19,"Den Namen des Benutzers, der momentan Schreibberechtigung für die Arbeitsmappe besitzt; ARBEITSMAPPE.ZUORDNEN(19) ist gleichbedeutend mit DATEI.ZUORDNEN(36)."]
[20,"Eine Zahl, die dem Typ der Datei entspricht, so wie er im Dialogfeld Speichern unter angezeigt wird; ARBEITSMAPPE.ZUORDNEN(20) ist gleichbedeutend mit DATEI.ZUORDNEN(37)."]
[21,"WAHR, wenn im Dialog Speichern-Optionen das Kontrollkästchen \"Sicherungsdatei erstellen\" aktiviert ist, sonst FALSCH; ARBEITSMAPPE.ZUORDNEN(21) ist gleichbedeutend mit DATEI.ZUORDNEN(40)."]
[]
[22,"WAHR, wenn im Register Berechnen des Dialogfeldes Optionen das Kontrollkästchen \"Externe Verknüpfungswerte speichern\" aktiviert ist; ARBEITSMAPPE.ZUORDNEN(22) ist gleichbedeutend mit DATEI.ZUORDNEN(43)."]
[23,"WAHR, wenn zu der Datei eine Apple OCE-Wurfsendung (Open Collaboration Environment mailer) gehört, sonst FALSCH; liefert #NV, wenn keine OCE-Wurfsendung installiert ist."]
[24,"WAHR, wenn an der Arbeitsmappe Änderungen vorgenommen wurden, seit sie das letzte Mal gespeichert wurde; FALSCH, wenn keine Änderungen vorgenommen wurden (oder wenn sie geschlossen wird, erfolgt keine Aufforderung, die Mappe zu speichern)."]
[]
[25,"Eine einzeilige, aus Zeichenfolgen bestehende Matrix mit den Namen der Empfänger, die in der \"To\"-Zeile der PowerTalk-Wurfsendung stehen."]
[26,"Eine einzeilige, aus Zeichenfolgen bestehende Matrix mit den Namen der Empfänger, die in der \"Cc\"-Zeile der PowerTalk-Wurfsendung stehen."]
[27,"Eine einzeilige, aus Zeichenfolgen bestehende Matrix mit den Namen der Empfänger, die in der \"Bcc\"-Zeile der PowerTalk-Wurfsendung stehen."]
[28,"Als Zeichenfolge den Betreff der PowerTalk-Wurfsendung."]
[]
[29,"Eine einzeilige, aus Zeichenfolgen bestehende Matrix mit den Anlagen der PowerTalk-Wurfsendung."]
[30,"WAHR, wenn die PowerTalk-Wurfsendung von einem anderen Benutzer empfangen wurde (im Gegensatz zu dem Zustand \"Gerade hinzugefügt, aber noch nicht gesendet\"); FALSCH, wenn die Wurfsendung noch nicht von einem anderen Benutzer empfangen wurde."]
[31,"Als fortlaufende Zahl den aus Datum und Uhrzeit bestehenden Zeitpunkt, zu dem die PowerTalk-Wurfsendung abgeschickt wurde; liefert den Fehlerwert #NV, wenn die Wurfsendung noch nicht abgeschickt wurde."]
[]
[32,"Als Zeichenfolge den Namen des Absenders der PowerTalk-Wurfsendung; liefert den Fehlerwert #NV, wenn die Wurfsendung noch nicht abgeschickt wurde."]
[33,"Als Zeichenfolge den Titel der Arbeitsmappe, wie er im Register Datei-Info des Dialogfelds Eigenschaften angezeigt wird."]
[34,"Als Zeichenfolge das Thema der Datei, wie es im Register Datei-Info des Dialogfelds Eigenschaften angezeigt wird."]
[35,"Als Zeichenfolge den Namen des Autors der Datei, wie er in dem Dialogfeld Datei-Info angezeigt wird."]
[]
[36,"Als Zeichenfolge die Schlüsselwörter der Datei, wie sie im Register Datei-Info des Dialogfelds Eigenschaften angezeigt werden."]
[37,"Als Zeichenfolge die Kommentare der Datei, wie sie im Register Datei-Info des Dialogfelds Eigenschaften angezeigt werden."]
[38,"Den Namen des aktiven Blattes."]
[]
["Name    ist der Name einer geöffneten Arbeitsmappe. Fehlt Name, wird der Name der aktiven Arbeitsmappe angenommen."]
[]
["Beispiel"]
[]
["Die folgende Makroformel liefert den Namen des aktiven Blattes der Arbeitsmappe VERKAUF.XLS:"]
[]
["ARBEITSMAPPE.ZUORDNEN(38; \"VERKAUF.XLS\")"]
[]
[]
["Verwandte Funktionen"]
[]
["ARBEITSMAPPE.AUSWÄHLEN","Wählt Dateien einer Arbeitsmappe aus"]
["DATEI.ZUORDNEN","Liefert Informationen zu einer Arbeitsmappe"]

{"sheet":"Auswerten","index":5,"n_rows":31,"n_cols":4,"rows_kept":31,"cut":false,"hidden":false,"merged":[]}
["Auswerten"]
[]
[]
[null,null,null,"Wertet eine als Zeichenfolge vorliegende Formel oder einen als Zeichenfolge vorliegenden Ausdruck aus. Wenn Sie einen Makro oder eine Unterroutine ausführen möchten, können Sie die Funktion MAKRO.AUSFÜHREN verwenden."]
[]
[null,null,null,"Syntax"]
[]
[null,null,null,"AUSWERTEN(Formel)"]
[]
[null,null,null,"Formel    ist der als Zeichenfolge vorliegende Ausdruck, den Sie auswerten möchten."]
[]
[null,null,null,"Hinweis"]
[]
[null,null,null,"AUSWERTEN entspricht einem Vorgang, bei dem zunächst innerhalb der in der Bearbeitungszeile stehenden Formel ein Ausdruck markiert und anschließend die Taste \"Neuberechnen\" (F9 in Microsoft Excel für Windows und BEFEHLSTASTE+= in Microsoft Excel für den Macintosh) gedrückt wird. AUSWERTEN ersetzt einen Ausdruck durch einen Wert."]
[]
[null,null,null,"Beispiel"]
[]
[null,null,null,"Angenommen, Sie möchten den Wert einer der Zellen \"VersuchsErgeb1\", \"VersuchsErgeb2\" oder \"VersuchsErgeb3\" wissen, wobei die jeweilige Kennummer (1, 2 oder 3) von dem Namen \"VersuchsNum\" angegeben wird und letzterer während der Ausführung des Makros unterschiedliche Werte annehmen kann. Mit der folgenden Formel können Sie den Wert berechnen:"]
[]
[null,null,null,"AUSWERTEN(\"VersuchsErgeb\"&VersuchsNum)"]
[]
[]
[]
[]
[]
[]
[]
[]
[null,"3+6",{"$f":"Auswerten","v":9}]
[null,"18*19",{"$f":"Auswerten","v":342}]
[null,"2^7",{"$f":"Auswerten","v":128}]